[Event "Late-Titled-Tuesday-Blitz-July-09-2024"]
[Site "Chess.com"]
[Date "2024.07.09"]
[Round "11"]
[White "ritanovikova"]
[Black "klercaku"]
[Result "0-1"]
[WhiteElo "2154"]
[BlackElo "2379"]
[TimeControl "180+1"]
[EndTime "16:04:00 PDT"]
[Termination "klercaku won on time"]

1. e4 {[%clk 0:02:55.2]} 1... e5 {[%clk 0:02:59.6]} 2. Nf3 {[%clk 0:02:54.9]}
2... Nc6 {[%clk 0:02:58.9]} 3. Bc4 {[%clk 0:02:54.6]} 3... Bc5 {[%clk
0:02:57.6]} 4. c3 {[%clk 0:02:54.8]} 4... Nf6 {[%clk 0:02:58.1]} 5. d4 {[%clk
0:02:54.3]} 5... exd4 {[%clk 0:02:59]} 6. cxd4 {[%clk 0:02:54.4]} 6... Bb4+
{[%clk 0:02:59.3]} 7. Bd2 {[%clk 0:02:54.9]} 7... Bxd2+ {[%clk 0:02:58.8]} 8.
Nbxd2 {[%clk 0:02:55.8]} 8... d5 {[%clk 0:02:59.4]} 9. exd5 {[%clk 0:02:54.3]}
9... Nxd5 {[%clk 0:03:00.3]} 10. O-O {[%clk 0:02:54.6]} 10... O-O {[%clk
0:02:59]} 11. Rc1 {[%clk 0:02:55.2]} 11... Be6 {[%clk 0:02:56.1]} 12. Ne4 {[%clk
0:02:50.8]} 12... Bg4 {[%clk 0:02:44.7]} 13. Be2 {[%clk 0:02:42.9]} 13... Nf4
{[%clk 0:02:41.6]} 14. Rxc6 {[%clk 0:02:00.1]} 14... bxc6 {[%clk 0:02:36.9]} 15.
h3 {[%clk 0:01:57.4]} 15... Nxe2+ {[%clk 0:02:23.8]} 16. Qxe2 {[%clk 0:01:58.3]}
16... Bxf3 {[%clk 0:02:22.8]} 17. Qxf3 {[%clk 0:01:57.5]} 17... Qxd4 {[%clk
0:02:22.4]} 18. Nc3 {[%clk 0:01:55.4]} 18... Rab8 {[%clk 0:02:18.7]} 19. Qxc6
{[%clk 0:01:46.5]} 19... Rxb2 {[%clk 0:02:17.5]} 20. Qxc7 {[%clk 0:01:46.5]}
20... Rc2 {[%clk 0:02:11.2]} 21. Nb5 {[%clk 0:01:40.9]} 21... Rxc7 {[%clk
0:02:04.9]} 22. Nxd4 {[%clk 0:01:41.1]} 22... Rd8 {[%clk 0:02:04.6]} 23. Nb3
{[%clk 0:01:40]} 23... Rc2 {[%clk 0:02:03.6]} 24. Ra1 {[%clk 0:01:28.3]} 24...
Rb2 {[%clk 0:02:00.4]} 25. f3 {[%clk 0:01:16]} 25... g6 {[%clk 0:01:59.1]} 26.
Kh2 {[%clk 0:01:15]} 26... Rc8 {[%clk 0:01:58.1]} 27. Nd4 {[%clk 0:01:05.4]}
27... Rc4 {[%clk 0:01:55.7]} 28. Rd1 {[%clk 0:00:53.9]} 28... Rxa2 {[%clk
0:01:53]} 29. f4 {[%clk 0:00:50.5]} 29... a5 {[%clk 0:01:50.2]} 30. f5 {[%clk
0:00:50.1]} 30... gxf5 {[%clk 0:01:50.2]} 31. Nxf5 {[%clk 0:00:48.8]} 31... h5
{[%clk 0:01:44.2]} 32. h4 {[%clk 0:00:39.4]} 32... Rcc2 {[%clk 0:01:41.9]} 33.
Ne3 {[%clk 0:00:35.1]} 33... Re2 {[%clk 0:01:40.9]} 34. Rd3 {[%clk 0:00:35.2]}
34... a4 {[%clk 0:01:36.7]} 35. Kh3 {[%clk 0:00:35.1]} 35... Rab2 {[%clk
0:01:32.8]} 36. Nc4 {[%clk 0:00:31.3]} 36... Rb3 {[%clk 0:01:31.9]} 0-1

[Event "Late-Titled-Tuesday-Blitz-July-09-2024"]
[Site "Chess.com"]
[Date "2024.07.09"]
[Round "11"]
[White "MusicCityMaster"]
[Black "wild3000"]
[Result "0-1"]
[WhiteElo "2495"]
[BlackElo "2453"]
[TimeControl "180+1"]
[EndTime "16:04:11 PDT"]
[Termination "wild3000 won by resignation"]

1. d4 {[%clk 0:03:00.9]} 1... d5 {[%clk 0:01:22.3]} 2. c4 {[%clk 0:02:58.6]}
2... c6 {[%clk 0:01:21.3]} 3. Nf3 {[%clk 0:02:57.7]} 3... Nf6 {[%clk 0:01:21.3]}
4. e3 {[%clk 0:02:57.9]} 4... Bg4 {[%clk 0:01:19.9]} 5. Nc3 {[%clk 0:02:56.5]}
5... e6 {[%clk 0:01:19.7]} 6. h3 {[%clk 0:02:57.1]} 6... Bxf3 {[%clk 0:01:19.1]}
7. Qxf3 {[%clk 0:02:58]} 7... Be7 {[%clk 0:01:18.6]} 8. Bd2 {[%clk 0:02:52.3]}
8... O-O {[%clk 0:01:18.4]} 9. Bd3 {[%clk 0:02:51.6]} 9... Nbd7 {[%clk
0:01:16.7]} 10. e4 {[%clk 0:02:42.2]} 10... dxe4 {[%clk 0:01:15.6]} 11. Nxe4
{[%clk 0:02:43.1]} 11... Nxe4 {[%clk 0:01:11.4]} 12. Qxe4 {[%clk 0:02:44]} 12...
Nf6 {[%clk 0:01:11.6]} 13. Qh4 {[%clk 0:02:44]} 13... c5 {[%clk 0:01:07.5]} 14.
Bc3 {[%clk 0:02:10.9]} 14... cxd4 {[%clk 0:01:04.6]} 15. Bxd4 {[%clk 0:01:55.3]}
15... e5 {[%clk 0:01:04]} 16. O-O-O {[%clk 0:01:47.2]} 16... exd4 {[%clk
0:01:02]} 17. Rhe1 {[%clk 0:01:45.1]} 17... Re8 {[%clk 0:00:52.9]} 18. g4 {[%clk
0:01:42.7]} 18... Ne4 {[%clk 0:00:30.4]} 19. Qh5 {[%clk 0:01:37.2]} 19... Bg5+
{[%clk 0:00:28.8]} 20. f4 {[%clk 0:01:31.7]} 20... g6 {[%clk 0:00:26.8]} 21.
Rxe4 {[%clk 0:01:20]} 21... gxh5 {[%clk 0:00:22.8]} 22. Rxd4 {[%clk 0:01:20.4]}
22... Qf6 {[%clk 0:00:18]} 23. fxg5 {[%clk 0:01:17.6]} 23... Qxg5+ {[%clk
0:00:18.2]} 24. Kb1 {[%clk 0:01:17.8]} 24... Rad8 {[%clk 0:00:16]} 25. Bf5
{[%clk 0:01:08.7]} 25... Rxd4 {[%clk 0:00:14.7]} 26. Rxd4 {[%clk 0:01:09.6]}
26... Qf6 {[%clk 0:00:11]} 27. Rf4 {[%clk 0:01:00.9]} 27... Qe5 {[%clk
0:00:08.2]} 28. Re4 {[%clk 0:00:59.2]} 28... Qxe4+ {[%clk 0:00:07.8]} 29. Bxe4
{[%clk 0:00:59.7]} 29... Rxe4 {[%clk 0:00:08.7]} 30. gxh5 {[%clk 0:01:00.3]}
30... Rxc4 {[%clk 0:00:08.7]} 31. h6 {[%clk 0:00:59.4]} 31... Rc5 {[%clk
0:00:09.6]} 32. b4 {[%clk 0:00:58.3]} 32... Rh5 {[%clk 0:00:10.5]} 33. Kb2
{[%clk 0:00:58.5]} 33... Rxh3 {[%clk 0:00:11.1]} 34. a4 {[%clk 0:00:58.4]} 34...
Rxh6 {[%clk 0:00:12]} 35. Kc3 {[%clk 0:00:58.5]} 35... Rh4 {[%clk 0:00:12.9]}
0-1

[Event "Late-Titled-Tuesday-Blitz-July-09-2024"]
[Site "Chess.com"]
[Date "2024.07.09"]
[Round "11"]
[White "Gyulamiryan-koryun"]
[Black "shirovin"]
[Result "1-0"]
[WhiteElo "1942"]
[BlackElo "2074"]
[TimeControl "180+1"]
[EndTime "16:04:17 PDT"]
[Termination "Gyulamiryan-koryun won on time"]

1. e4 {[%clk 0:02:52.5]} 1... c5 {[%clk 0:02:59]} 2. Nf3 {[%clk 0:02:46.3]} 2...
d6 {[%clk 0:02:58.6]} 3. d4 {[%clk 0:02:46.1]} 3... cxd4 {[%clk 0:02:59.2]} 4.
Nxd4 {[%clk 0:02:46.1]} 4... Nf6 {[%clk 0:02:59.8]} 5. Nc3 {[%clk 0:02:45.8]}
5... a6 {[%clk 0:03:00.4]} 6. Be3 {[%clk 0:02:45.7]} 6... e5 {[%clk 0:02:59.6]}
7. Nb3 {[%clk 0:02:44.7]} 7... Be6 {[%clk 0:03:00.1]} 8. f3 {[%clk 0:02:44.5]}
8... h5 {[%clk 0:02:57.6]} 9. Qd2 {[%clk 0:02:44]} 9... Nbd7 {[%clk 0:02:58.2]}
10. O-O-O {[%clk 0:02:42.9]} 10... Be7 {[%clk 0:02:58.7]} 11. Na4 {[%clk
0:02:34]} 11... b5 {[%clk 0:02:38.8]} 12. Nc3 {[%clk 0:02:33.5]} 12... Rc8
{[%clk 0:02:37.5]} 13. Bxb5 {[%clk 0:02:25.5]} 13... axb5 {[%clk 0:02:36.3]} 14.
Nxb5 {[%clk 0:02:25.5]} 14... Bxb3 {[%clk 0:02:29.1]} 15. axb3 {[%clk
0:02:20.7]} 15... Nc5 {[%clk 0:02:28.9]} 16. Bxc5 {[%clk 0:02:09.3]} 16... Rxc5
{[%clk 0:02:27]} 17. Nxd6+ {[%clk 0:02:04.9]} 17... Bxd6 {[%clk 0:02:24.2]} 18.
Qxd6 {[%clk 0:02:04.8]} 18... Qxd6 {[%clk 0:02:24]} 19. Rxd6 {[%clk 0:02:04.6]}
19... O-O {[%clk 0:02:10.2]} 20. c4 {[%clk 0:02:03.8]} 20... Rb8 {[%clk
0:02:07.6]} 21. Kc2 {[%clk 0:02:02.7]} 21... h4 {[%clk 0:02:02.9]} 22. Rhd1
{[%clk 0:01:54.5]} 22... Nh5 {[%clk 0:02:00.8]} 23. Rd8+ {[%clk 0:01:50.2]}
23... Rxd8 {[%clk 0:01:59.7]} 24. Rxd8+ {[%clk 0:01:50.1]} 24... Kh7 {[%clk
0:02:00.3]} 25. Rd5 {[%clk 0:01:50.2]} 25... Rxd5 {[%clk 0:01:47.8]} 26. exd5
{[%clk 0:01:49.9]} 26... Kg8 {[%clk 0:01:45.2]} 27. c5 {[%clk 0:01:40.8]} 27...
Kf8 {[%clk 0:01:44.2]} 28. d6 {[%clk 0:01:40.4]} 28... Ke8 {[%clk 0:01:44.2]}
29. c6 {[%clk 0:01:40.4]} 29... Nf6 {[%clk 0:01:42.7]} 30. Kd3 {[%clk 0:01:36]}
30... Kd8 {[%clk 0:01:36.6]} 31. b4 {[%clk 0:01:35.5]} 31... Ne8 {[%clk
0:01:36.2]} 32. d7 {[%clk 0:01:34.6]} 32... Nf6 {[%clk 0:01:35.5]} 33. b5 {[%clk
0:01:32.2]} 33... Nd5 {[%clk 0:01:32.2]} 34. Ke4 {[%clk 0:01:26.1]} 34... Nb4
{[%clk 0:01:03.9]} 35. Kxe5 {[%clk 0:01:21.2]} 35... Kc7 {[%clk 0:01:03.3]} 36.
Kd4 {[%clk 0:01:16.4]} 36... Nc2+ {[%clk 0:01:01]} 37. Kc5 {[%clk 0:01:15.3]}
37... Ne1 {[%clk 0:00:57.1]} 38. b6+ {[%clk 0:01:14.9]} 38... Kd8 {[%clk
0:00:56.8]} 39. Kd6 {[%clk 0:01:14.5]} 1-0

[Event "Late-Titled-Tuesday-Blitz-July-09-2024"]
[Site "Chess.com"]
[Date "2024.07.09"]
[Round "11"]
[White "ninjatrick"]
[Black "manitodeplomo"]
[Result "1-0"]
[WhiteElo "2515"]
[BlackElo "2601"]
[TimeControl "180+1"]
[EndTime "16:04:20 PDT"]
[Termination "ninjatrick won by resignation"]

1. Nf3 {[%clk 0:03:00.1]} 1... g6 {[%clk 0:02:58.3]} 2. d4 {[%clk 0:02:58]} 2...
Bg7 {[%clk 0:02:58.3]} 3. c4 {[%clk 0:02:58.4]} 3... c5 {[%clk 0:02:56.8]} 4. d5
{[%clk 0:02:57.5]} 4... e6 {[%clk 0:02:56.6]} 5. Nc3 {[%clk 0:02:56.6]} 5...
exd5 {[%clk 0:02:56.1]} 6. cxd5 {[%clk 0:02:56.9]} 6... d6 {[%clk 0:02:56.7]} 7.
e4 {[%clk 0:02:56.8]} 7... a6 {[%clk 0:02:57.2]} 8. a4 {[%clk 0:02:56.8]} 8...
Ne7 {[%clk 0:02:55.4]} 9. Be2 {[%clk 0:02:55]} 9... O-O {[%clk 0:02:54.4]} 10.
O-O {[%clk 0:02:54.9]} 10... Bg4 {[%clk 0:02:52.6]} 11. a5 {[%clk 0:02:46.8]}
11... Nd7 {[%clk 0:02:50.4]} 12. Bf4 {[%clk 0:02:46.6]} 12... Bxf3 {[%clk
0:02:47.9]} 13. Bxf3 {[%clk 0:02:46.3]} 13... Ne5 {[%clk 0:02:48.1]} 14. Be2
{[%clk 0:02:45.3]} 14... f5 {[%clk 0:02:42.7]} 15. Bg5 {[%clk 0:02:40.6]} 15...
h6 {[%clk 0:02:40]} 16. Bxe7 {[%clk 0:02:37.9]} 16... Qxe7 {[%clk 0:02:40.9]}
17. f4 {[%clk 0:02:37.8]} 17... Nd7 {[%clk 0:02:33.5]} 18. exf5 {[%clk 0:02:19]}
18... gxf5 {[%clk 0:02:33.5]} 19. Kh1 {[%clk 0:02:16.4]} 19... Nf6 {[%clk
0:02:01.8]} 20. Bf3 {[%clk 0:02:12.5]} 20... Ne4 {[%clk 0:02:01.6]} 21. Bxe4
{[%clk 0:02:02.2]} 21... fxe4 {[%clk 0:02:02.5]} 22. Qg4 {[%clk 0:02:02.8]}
22... Kh8 {[%clk 0:01:41.5]} 23. Rae1 {[%clk 0:01:59.7]} 23... Bxc3 {[%clk
0:01:38.6]} 24. bxc3 {[%clk 0:02:00.6]} 24... Rf6 {[%clk 0:01:34]} 25. Re3
{[%clk 0:01:49.4]} 25... Re8 {[%clk 0:01:18.5]} 26. Rfe1 {[%clk 0:01:48.6]}
26... Qh7 {[%clk 0:01:00.3]} 27. g3 {[%clk 0:01:33.3]} 27... Rf7 {[%clk
0:00:21.7]} 28. c4 {[%clk 0:01:14.4]} 28... Rfe7 {[%clk 0:00:20.5]} 29. f5
{[%clk 0:01:11.2]} 29... Qg7 {[%clk 0:00:18]} 30. Qf4 {[%clk 0:01:09.2]} 30...
b5 {[%clk 0:00:09.7]} 31. axb6 {[%clk 0:01:08.3]} 31... Qg5 {[%clk 0:00:08.6]}
32. Qxg5 {[%clk 0:01:06]} 32... hxg5 {[%clk 0:00:09.5]} 33. f6 {[%clk
0:01:06.5]} 33... Rf7 {[%clk 0:00:05.5]} 34. Rxe4 {[%clk 0:01:06.4]} 34... Rxe4
{[%clk 0:00:05.8]} 35. Rxe4 {[%clk 0:01:07.3]} 35... Rxf6 {[%clk 0:00:06.1]} 36.
Re8+ {[%clk 0:01:06.1]} 36... Kg7 {[%clk 0:00:05.9]} 37. b7 {[%clk 0:01:06.5]}
1-0

[Event "Late-Titled-Tuesday-Blitz-July-09-2024"]
[Site "Chess.com"]
[Date "2024.07.09"]
[Round "11"]
[White "zsoltkorpics"]
[Black "RodriQA"]
[Result "1-0"]
[WhiteElo "2498"]
[BlackElo "2435"]
[TimeControl "180+1"]
[EndTime "16:04:20 PDT"]
[Termination "zsoltkorpics won on time"]

1. e4 {[%clk 0:03:00.9]} 1... c6 {[%clk 0:02:59.8]} 2. Nf3 {[%clk 0:03:00.9]}
2... d5 {[%clk 0:03:00.6]} 3. Nc3 {[%clk 0:03:01.1]} 3... dxe4 {[%clk
0:02:58.8]} 4. Nxe4 {[%clk 0:03:02]} 4... Nf6 {[%clk 0:02:58.7]} 5. Qe2 {[%clk
0:03:02.2]} 5... Bf5 {[%clk 0:02:56.2]} 6. Nxf6+ {[%clk 0:02:59.7]} 6... gxf6
{[%clk 0:02:57.1]} 7. d4 {[%clk 0:02:58.3]} 7... Na6 {[%clk 0:02:57.1]} 8. c3
{[%clk 0:02:56.5]} 8... Qd5 {[%clk 0:02:53.6]} 9. g3 {[%clk 0:02:51]} 9... e5
{[%clk 0:02:40.8]} 10. Bg2 {[%clk 0:02:44.2]} 10... O-O-O {[%clk 0:02:28.5]} 11.
O-O {[%clk 0:02:17.2]} 11... Qd7 {[%clk 0:01:45.1]} 12. Nh4 {[%clk 0:01:55.6]}
12... exd4 {[%clk 0:01:41]} 13. Nxf5 {[%clk 0:01:46]} 13... Qxf5 {[%clk
0:01:41.9]} 14. cxd4 {[%clk 0:01:45.2]} 14... Nb4 {[%clk 0:01:21]} 15. Be3
{[%clk 0:01:29.8]} 15... h5 {[%clk 0:01:11.6]} 16. h4 {[%clk 0:01:27.4]} 16...
Nc2 {[%clk 0:01:03.5]} 17. Rac1 {[%clk 0:01:24.4]} 17... Nxe3 {[%clk 0:01:03.8]}
18. fxe3 {[%clk 0:01:19.2]} 18... Qd7 {[%clk 0:00:37.6]} 19. Kh2 {[%clk
0:01:16.1]} 19... Kb8 {[%clk 0:00:33.1]} 20. Rxf6 {[%clk 0:01:12.7]} 20... Bd6
{[%clk 0:00:24.4]} 21. e4 {[%clk 0:01:10.1]} 21... Rdg8 {[%clk 0:00:04.2]} 22.
e5 {[%clk 0:01:09.3]} 22... Bb4 {[%clk 0:00:03.8]} 23. Qc4 {[%clk 0:01:04.1]}
23... Ba5 {[%clk 0:00:02.6]} 24. Rxf7 {[%clk 0:01:03.9]} 24... Qg4 {[%clk
0:00:02.5]} 25. Qb3 {[%clk 0:01:03.8]} 25... Bb6 {[%clk 0:00:02.5]} 26. d5
{[%clk 0:00:58.1]} 26... Rg6 {[%clk 0:00:02.6]} 27. dxc6 {[%clk 0:00:56.3]}
27... bxc6 {[%clk 0:00:03.1]} 28. Bxc6 {[%clk 0:00:55.9]} 28... Qe2+ {[%clk
0:00:01.4]} 29. Bg2 {[%clk 0:00:55.3]} 29... Rhg8 {[%clk 0:00:02]} 30. Rb7+
{[%clk 0:00:54.9]} 1-0

[Event "Late-Titled-Tuesday-Blitz-July-09-2024"]
[Site "Chess.com"]
[Date "2024.07.09"]
[Round "11"]
[White "Vaporwaffle94"]
[Black "rionelG"]
[Result "1-0"]
[WhiteElo "2315"]
[BlackElo "2396"]
[TimeControl "180+1"]
[EndTime "16:04:31 PDT"]
[Termination "Vaporwaffle94 won on time"]

1. e4 {[%clk 0:03:00.9]} 1... c5 {[%clk 0:02:59]} 2. Nf3 {[%clk 0:03:00.5]} 2...
d6 {[%clk 0:02:59.4]} 3. d4 {[%clk 0:03:00.4]} 3... cxd4 {[%clk 0:03:00.3]} 4.
Nxd4 {[%clk 0:03:00.7]} 4... Nf6 {[%clk 0:03:00.5]} 5. Nc3 {[%clk 0:03:01.2]}
5... a6 {[%clk 0:03:00.6]} 6. a3 {[%clk 0:03:01.7]} 6... e6 {[%clk 0:02:59.6]}
7. Bg5 {[%clk 0:02:59.8]} 7... Be7 {[%clk 0:02:59.4]} 8. Qd2 {[%clk 0:03:00]}
8... Qc7 {[%clk 0:02:58.5]} 9. O-O-O {[%clk 0:02:56.7]} 9... b5 {[%clk
0:02:52.9]} 10. Nb3 {[%clk 0:02:56.2]} 10... Nbd7 {[%clk 0:02:52]} 11. Kb1
{[%clk 0:02:55.1]} 11... Bb7 {[%clk 0:02:50.2]} 12. f3 {[%clk 0:02:54.7]} 12...
h5 {[%clk 0:02:27.9]} 13. Be2 {[%clk 0:02:53.1]} 13... Rc8 {[%clk 0:02:24.6]}
14. Bxb5 {[%clk 0:02:45.9]} 14... axb5 {[%clk 0:02:22]} 15. Nxb5 {[%clk
0:02:45.5]} 15... Qb6 {[%clk 0:02:16.8]} 16. Nxd6+ {[%clk 0:02:45.2]} 16... Bxd6
{[%clk 0:02:15.2]} 17. Qxd6 {[%clk 0:02:46.1]} 17... Qxd6 {[%clk 0:02:12]} 18.
Rxd6 {[%clk 0:02:47]} 18... Rc6 {[%clk 0:01:56.6]} 19. Rhd1 {[%clk 0:02:45.4]}
19... Rxd6 {[%clk 0:01:55.9]} 20. Rxd6 {[%clk 0:02:46.3]} 20... Ke7 {[%clk
0:01:35.2]} 21. Rd4 {[%clk 0:02:42]} 21... Rc8 {[%clk 0:01:32.4]} 22. Rb4 {[%clk
0:02:41.4]} 22... Rc7 {[%clk 0:01:30.9]} 23. f4 {[%clk 0:02:41.4]} 23... Bxe4
{[%clk 0:01:26.8]} 24. Rxe4 {[%clk 0:02:40.4]} 24... Kd6 {[%clk 0:01:08.9]} 25.
Rd4+ {[%clk 0:02:39.6]} 25... Ke7 {[%clk 0:01:06.9]} 26. a4 {[%clk 0:02:40.1]}
26... Ra7 {[%clk 0:00:55.3]} 27. a5 {[%clk 0:02:40]} 27... Ke8 {[%clk
0:00:50.8]} 28. Ra4 {[%clk 0:02:39.3]} 28... Nd5 {[%clk 0:00:50]} 29. Nd4 {[%clk
0:02:38]} 29... Nc5 {[%clk 0:00:48.9]} 30. Ra3 {[%clk 0:02:36.8]} 30... f6
{[%clk 0:00:46.3]} 31. Bh4 {[%clk 0:02:36.3]} 31... Nxf4 {[%clk 0:00:40.1]} 32.
b4 {[%clk 0:02:36.1]} 32... Ne4 {[%clk 0:00:31.4]} 33. b5 {[%clk 0:02:33.3]}
33... e5 {[%clk 0:00:22.1]} 34. b6 {[%clk 0:02:32.7]} 34... Rb7 {[%clk
0:00:20.2]} 35. Nb3 {[%clk 0:02:26.6]} 35... Nc3+ {[%clk 0:00:19.5]} 36. Ka1
{[%clk 0:02:24.3]} 36... Nb5 {[%clk 0:00:10.8]} 37. Nc5 {[%clk 0:02:21.2]} 37...
Rb8 {[%clk 0:00:09.1]} 38. b7 {[%clk 0:02:18.4]} 38... Nxa3 {[%clk 0:00:08]} 39.
a6 {[%clk 0:02:17.7]} 39... Nb5 {[%clk 0:00:08.4]} 40. c4 {[%clk 0:02:13.7]}
40... Na7 {[%clk 0:00:07.1]} 41. Bf2 {[%clk 0:02:12.6]} 41... Kd8 {[%clk
0:00:05.8]} 42. Ne6+ {[%clk 0:02:11.1]} 42... Nxe6 {[%clk 0:00:06]} 43. Bxa7
{[%clk 0:02:11.2]} 43... Kc7 {[%clk 0:00:06.5]} 44. Kb2 {[%clk 0:02:06.7]} 44...
Rxb7+ {[%clk 0:00:04.9]} 45. axb7 {[%clk 0:02:06.3]} 45... Kxb7 {[%clk
0:00:05.8]} 46. Bf2 {[%clk 0:02:06.3]} 46... Kc6 {[%clk 0:00:06.3]} 47. Kc3
{[%clk 0:02:06.8]} 47... Nd8 {[%clk 0:00:05.4]} 48. Kd3 {[%clk 0:02:07.3]} 48...
Nb7 {[%clk 0:00:05.2]} 49. Ke4 {[%clk 0:02:07.6]} 49... Nd6+ {[%clk 0:00:05.8]}
50. Kd3 {[%clk 0:02:07]} 50... e4+ {[%clk 0:00:04.5]} 51. Kd4 {[%clk 0:02:07.1]}
51... f5 {[%clk 0:00:03.5]} 52. Bg3 {[%clk 0:02:07.3]} 52... Nf7 {[%clk
0:00:02.9]} 53. h4 {[%clk 0:02:04.4]} 53... g6 {[%clk 0:00:02.6]} 54. Bf2 {[%clk
0:02:03.8]} 54... Kd6 {[%clk 0:00:02.4]} 55. Ke3 {[%clk 0:02:02.3]} 55... Ke5
{[%clk 0:00:02.2]} 56. Bg3+ {[%clk 0:02:02.5]} 56... Ke6 {[%clk 0:00:02.6]} 57.
Kd4 {[%clk 0:02:02.9]} 57... Nd8 {[%clk 0:00:02.3]} 58. c5 {[%clk 0:02:03.4]}
58... Nc6+ {[%clk 0:00:02.4]} 59. Kc4 {[%clk 0:02:04.1]} 59... Kd7 {[%clk
0:00:02.3]} 60. Kd5 {[%clk 0:02:03.6]} 60... Ne7+ {[%clk 0:00:01.6]} 61. Ke5
{[%clk 0:02:03.2]} 61... Kc6 {[%clk 0:00:01.4]} 62. Kf6 {[%clk 0:02:03.5]} 62...
Nd5+ {[%clk 0:00:01.7]} 63. Kxg6 {[%clk 0:02:03.9]} 63... e3 {[%clk 0:00:02.1]}
64. Kxh5 {[%clk 0:02:03.3]} 64... f4 {[%clk 0:00:01.9]} 65. Be1 {[%clk 0:02:03]}
65... Kxc5 {[%clk 0:00:02.2]} 66. Kg5 {[%clk 0:02:03.2]} 66... Kd4 {[%clk
0:00:02.1]} 67. h5 {[%clk 0:02:03.3]} 1-0

[Event "Late-Titled-Tuesday-Blitz-July-09-2024"]
[Site "Chess.com"]
[Date "2024.07.09"]
[Round "11"]
[White "eightbyeightchess"]
[Black "VitorBronson"]
[Result "0-1"]
[WhiteElo "2376"]
[BlackElo "2495"]
[TimeControl "180+1"]
[EndTime "16:04:33 PDT"]
[Termination "VitorBronson won by resignation"]

1. e4 {[%clk 0:03:00.9]} 1... c5 {[%clk 0:02:56.6]} 2. Nf3 {[%clk 0:02:59.6]}
2... d6 {[%clk 0:02:56.7]} 3. d4 {[%clk 0:02:57.6]} 3... cxd4 {[%clk 0:02:57.3]}
4. Qxd4 {[%clk 0:02:58.5]} 4... Nc6 {[%clk 0:02:57.1]} 5. Bb5 {[%clk 0:02:58]}
5... Bd7 {[%clk 0:02:57.4]} 6. Bxc6 {[%clk 0:02:58.2]} 6... Bxc6 {[%clk
0:02:57.6]} 7. Nc3 {[%clk 0:02:58.8]} 7... Nf6 {[%clk 0:02:57.8]} 8. Bg5 {[%clk
0:02:59.2]} 8... e6 {[%clk 0:02:58.4]} 9. O-O-O {[%clk 0:02:58.5]} 9... Be7
{[%clk 0:02:58.8]} 10. Qd3 {[%clk 0:02:58.7]} 10... O-O {[%clk 0:02:58.3]} 11.
Nd4 {[%clk 0:02:58.3]} 11... Bd7 {[%clk 0:02:55.2]} 12. f4 {[%clk 0:02:57.8]}
12... Re8 {[%clk 0:02:49.8]} 13. f5 {[%clk 0:02:56.8]} 13... a6 {[%clk 0:02:47]}
14. fxe6 {[%clk 0:02:53.5]} 14... fxe6 {[%clk 0:02:47.2]} 15. h4 {[%clk
0:02:52.8]} 15... b5 {[%clk 0:02:47.1]} 16. h5 {[%clk 0:02:41.1]} 16... h6
{[%clk 0:02:47]} 17. Bxf6 {[%clk 0:02:02.6]} 17... Bxf6 {[%clk 0:02:46.2]} 18.
Nce2 {[%clk 0:02:02.9]} 18... b4 {[%clk 0:02:44.3]} 19. Qb3 {[%clk 0:01:55.2]}
19... a5 {[%clk 0:02:40.2]} 20. Rhf1 {[%clk 0:01:23.7]} 20... Be5 {[%clk
0:02:39.1]} 21. Nf4 {[%clk 0:01:20.9]} 21... Qg5 {[%clk 0:02:38.8]} 22. g3
{[%clk 0:01:16.6]} 22... a4 {[%clk 0:02:36.3]} 23. Qxb4 {[%clk 0:01:12.7]} 23...
Reb8 {[%clk 0:02:33.3]} 24. Qc4 {[%clk 0:01:09.5]} 24... a3 {[%clk 0:02:21.7]}
25. b3 {[%clk 0:01:07.1]} 25... Qxg3 {[%clk 0:02:21.7]} 26. Ndxe6 {[%clk
0:00:49.9]} 26... Rc8 {[%clk 0:02:03]} 27. Nc7+ {[%clk 0:00:40.1]} 27... Kh7
{[%clk 0:02:02.8]} 28. Nfd5 {[%clk 0:00:23.8]} 28... Ra7 {[%clk 0:01:40.1]} 29.
Rg1 {[%clk 0:00:09.9]} 29... Qh3 {[%clk 0:01:31]} 30. Rdf1 {[%clk 0:00:07.1]}
30... Be6 {[%clk 0:01:28.4]} 31. Nxe6 {[%clk 0:00:02.7]} 31... Rxc4 {[%clk
0:01:24.3]} 32. Nf8+ {[%clk 0:00:03]} 32... Kg8 {[%clk 0:01:24.8]} 33. Ng6
{[%clk 0:00:02.4]} 33... Rc8 {[%clk 0:01:13.9]} 34. Nde7+ {[%clk 0:00:02.5]}
34... Rxe7 {[%clk 0:01:13.5]} 35. Nxe7+ {[%clk 0:00:02.5]} 35... Kh7 {[%clk
0:01:13.8]} 36. Nxc8 {[%clk 0:00:02.4]} 36... Qc3 {[%clk 0:01:12.8]} 37. Rf8
{[%clk 0:00:01.8]} 37... Qe3+ {[%clk 0:01:10.4]} 38. Kd1 {[%clk 0:00:01.1]}
38... Qxg1+ {[%clk 0:01:10.4]} 39. Kd2 {[%clk 0:00:02]} 39... Qd4+ {[%clk
0:01:07]} 40. Ke2 {[%clk 0:00:02.9]} 40... Qxe4+ {[%clk 0:01:06.8]} 41. Kd2
{[%clk 0:00:03.4]} 41... Bf4+ {[%clk 0:01:06.5]} 42. Kd1 {[%clk 0:00:02.9]}
42... Qf3+ {[%clk 0:01:03.6]} 43. Ke1 {[%clk 0:00:02.4]} 43... Bg3+ {[%clk
0:01:03.5]} 44. Kd2 {[%clk 0:00:02.4]} 44... Qxf8 {[%clk 0:01:03.4]} 0-1